Workbook

Sheet 工作表1
A1: time to maturity (in 0.5 years) | B1: 10
A2: annual coupon rate | B2: 0.08
A3: discount interest rate | B3: 0.4347129576
A4: par value | B4: 100
A5: number of coupon payments per year (1 or 2) | B5: 2
A6: Bond Price | B6: 20

Sheet Check
A1: 1 | B1: =coupon*par/payment_frequency -> 4 | C1: =B1/(1+interest_rate/payment_frequency)^A1 -> 3.285808282
A2: 2 | B2: =coupon*par/payment_frequency -> 4 | C2: =B2/(1+interest_rate/payment_frequency)^A2 -> 2.699134016
A3: 3 | B3: =coupon*par/payment_frequency -> 4 | C3: =B3/(1+interest_rate/payment_frequency)^A3 -> 2.217209226
A4: 4 | B4: =coupon*par/payment_frequency -> 4 | C4: =B4/(1+interest_rate/payment_frequency)^A4 -> 1.821331109
A5: 5 | B5: =coupon*par/payment_frequency -> 4 | C5: =B5/(1+interest_rate/payment_frequency)^A5 -> 1.496136211
A6: 6 | B6: =coupon*par/payment_frequency -> 4 | C6: =B6/(1+interest_rate/payment_frequency)^A6 -> 1.229004188
A7: 7 | B7: =coupon*par/payment_frequency -> 4 | C7: =B7/(1+interest_rate/payment_frequency)^A7 -> 1.009568035
A8: 8 | B8: =coupon*par/payment_frequency -> 4 | C8: =B8/(1+interest_rate/payment_frequency)^A8 -> 0.8293117526
A9: 9 | B9: =coupon*par/payment_frequency -> 4 | C9: =B9/(1+interest_rate/payment_frequency)^A9 -> 0.6812398562
A10: 10 | B10: =coupon*par/payment_frequency -> 4 | C10: =B10/(1+interest_rate/payment_frequency)^A10 -> 0.5596058904
A11: 11 | B11: =coupon*par/payment_frequency -> 4 | C11: =B11/(1+interest_rate/payment_frequency)^A11 -> 0.4596894173
A12: 12 | B12: =coupon*par/payment_frequency -> 4 | C12: =B12/(1+interest_rate/payment_frequency)^A12 -> 0.3776128236
A13: 13 | B13: =coupon*par/payment_frequency -> 4 | C13: =B13/(1+interest_rate/payment_frequency)^A13 -> 0.3101908358
A14: 14 | B14: =coupon*par/payment_frequency -> 4 | C14: =B14/(1+interest_rate/payment_frequency)^A14 -> 0.2548069043
A15: 15 | B15: =coupon*par/payment_frequency -> 4 | C15: =B15/(1+interest_rate/payment_frequency)^A15 -> 0.2093116591
A16: 16 | B16: =coupon*par/payment_frequency -> 4 | C16: =B16/(1+interest_rate/payment_frequency)^A16 -> 0.1719394957
A17: 17 | B17: =coupon*par/payment_frequency -> 4 | C17: =B17/(1+interest_rate/payment_frequency)^A17 -> 0.1412400548
A18: 18 | B18: =coupon*par/payment_frequency -> 4 | C18: =B18/(1+interest_rate/payment_frequency)^A18 -> 0.1160219354
A19: 19 | B19: =coupon*par/payment_frequency -> 4 | C19: =B19/(1+interest_rate/payment_frequency)^A19 -> 0.09530645907
A20: 20 | B20: =par + coupon*par/payment_frequency -> 104 | C20: =B20/(1+interest_rate/payment_frequency)^A20 -> 2.035531891
C21: =SUM(C1:C20) -> 20.00000004
